bitfinex/quotes_BTCUSD_20240717
["timestamp","ask_amount","ask_price","bid_price","bid_amount"]
[1721178964230,0.87002349,65988.0,65987.0,4.86285142]
[1721178964415,0.87002349,65988.0,65987.0,4.42132333]
[1721178964639,0.87002349,65988.0,65987.0,5.08842644]
[1721178964757,0.87002349,65988.0,65987.0,5.18731708]
[1721178965154,0.87002349,65988.0,65987.0,5.21531708]
[1721178965360,0.87002349,65988.0,65987.0,5.51840708]
[1721178965560,0.87002349,65988.0,65987.0,5.59539218]
[1721178965797,0.87002349,65988.0,65987.0,5.2471124]
[1721178965976,0.87002349,65988.0,65987.0,5.59539218]
[1721178966177,0.87002349,65988.0,65987.0,5.61839218]
[1721178966395,0.87002349,65988.0,65987.0,6.33239218]
[1721178966580,0.87002349,65988.0,65987.0,6.31839218]
[1721178966809,0.86519849,65988.0,65987.0,6.31839218]
[1721178966966,0.86519849,65988.0,65987.0,6.33457551]
[1721178967367,0.86519849,65988.0,65987.0,6.00610985]
[1721178967576,0.86519849,65988.0,65987.0,2.56134323]
[1721178967821,0.86519849,65988.0,65987.0,3.1821748]
[1721178968030,0.86519849,65988.0,65987.0,1.80973425]
[1721178968228,0.86519849,65988.0,65987.0,1.30973425]
[1721178968451,0.86519849,65988.0,65987.0,3.80104099]
[1721178968651,0.86519849,65988.0,65987.0,4.44322099]
[1721178968816,0.86519849,65988.0,65987.0,5.80340963]
[1721178969147,0.86519849,65988.0,65987.0,4.73219607]
[1721178969354,0.86519849,65988.0,65987.0,6.01448607]
[1721178969600,0.86519849,65988.0,65987.0,4.58381848]
[1721178969801,0.86519849,65988.0,65987.0,3.48219607]
[1721178969954,0.86519849,65988.0,65987.0,2.46510607]
[1721178970131,0.86519849,65988.0,65987.0,3.21510607]
[1721178970338,0.86519849,65988.0,65987.0,6.08483232]
[1721178970541,0.86519849,65988.0,65987.0,6.07082997]
[1721178970758,0.86519849,65988.0,65987.0,6.48064373]
[1721178971100,0.86519849,65988.0,65987.0,4.84791997]
[1721178971302,0.86519849,65988.0,65987.0,5.98482997]
[1721178971555,0.86519849,65988.0,65987.0,3.15853997]
[1721178971764,0.86519849,65988.0,65987.0,1.59797823]
[1721178971971,1.00609849,65988.0,65987.0,1.11448366]
[1721178972104,1.00609849,65988.0,65987.0,2.05511866]
[1721178972309,0.86519849,65988.0,65987.0,1.77516815]
[1721178972507,0.86519849,65988.0,65987.0,1.10048366]
[1721178972508,0.07717479,65988.0,65987.0,1.10048366]
[1721178972709,0.29637479,65999.0,65987.0,1.10048366]
[1721178972913,0.45075653,65999.0,65988.0,0.12578966]
[1721178973180,0.23155653,65999.0,65989.0,0.12578966]
[1721178973472,0.15438174,65998.0,65990.0,0.12582348]
[1721178973704,0.15438174,65998.0,65991.0,0.12582348]
[1721178973850,0.15438174,65998.0,65992.0,0.12582348]
[1721178974050,0.15438174,65998.0,65993.0,0.12582348]
[1721178974251,0.15438174,65998.0,65987.0,0.260694]
[1721178974452,0.15438174,65998.0,65988.0,0.12582936]
[1721178974653,0.15638174,65998.0,65989.0,0.12582936]
[1721178974818,0.002,65998.0,65990.0,0.12582936]
[1721178975021,0.216468,66000.0,65997.0,0.5]
[1721178975215,0.216468,66000.0,65998.0,0.12582936]
[1721178975421,0.216468,66000.0,65997.0,0.5]
[1721178975422,0.216468,66000.0,65999.0,0.12581595]
[1721178975622,0.357568,66000.0,65999.0,0.12581595]
[1721178976052,0.357568,66000.0,65999.0,1.28339623]
[1721178976253,0.357568,66000.0,65999.0,0.12579371]
[1721178976654,0.51194974,66000.0,65999.0,0.12579371]
[1721178976888,0.51194974,66000.0,65990.0,0.01788756]
[1721178976889,0.37084974,66000.0,65990.0,0.00277097]
[1721178977077,0.0755,65998.0,65992.0,0.7]
[1721178977281,0.1379,65996.0,65992.0,0.7]
[1721178977683,0.0755,65995.0,65992.0,0.7]
[1721178977885,0.0624,65994.0,65992.0,0.7]
[1721178979126,0.0624,65994.0,65992.0,0.705]
[1721178979424,0.0624,65994.0,65992.0,0.7]
[1721178979645,0.0624,65994.0,65992.0,0.706]
[1721178979764,0.21678174,65994.0,65992.0,0.706]
[1721178979967,0.21678174,65994.0,65992.0,0.008]
[1721178980164,0.0624,65994.0,65992.0,0.008]
[1721178980389,0.0624,65994.0,65993.0,1.08041644]
[1721178980589,0.0624,65994.0,65993.0,0.62582344]
[1721178981055,0.216468,66000.0,65999.0,0.454551]
[1721178981254,0.216468,66000.0,65999.0,0.58037444]
[1721178981456,0.216468,66000.0,65999.0,0.12582344]
[1721178982027,0.216468,66000.0,65999.0,0.12080344]
[1721178982226,0.216468,66000.0,65996.0,0.151523]
[1721178982426,0.216468,66000.0,65997.0,0.00277097]
[1721178982590,0.216468,66000.0,65999.0,0.014]
[1721178982794,0.216468,66000.0,65996.0,0.5]
[1721178983024,0.216468,66000.0,65999.0,0.5]
[1721178983236,0.216468,66000.0,65999.0,1.154551]
[1721178983440,0.216468,66000.0,65999.0,0.713]
[1721178983640,0.216468,66000.0,65999.0,0.013]
[1721178984298,0.88216474,66000.0,65999.0,0.027]
[1721178984512,0.88216474,66000.0,65999.0,0.013]
[1721178984699,0.0783,65999.0,65990.0,0.04451554]
[1721178984878,0.0783,65999.0,65987.0,0.12839132]
[1721178984879,0.0783,65997.0,65988.0,0.74728651]
[1721178985078,0.435668,66000.0,65988.0,0.70277097]
[1721178985079,0.51134,65989.0,65988.0,0.70277097]
[1721178985303,0.66572174,65989.0,65988.0,0.7]
[1721178985481,0.59994153,65989.0,65988.0,0.7]
[1721178985684,0.59994153,65989.0,65987.0,0.000924]
[1721178985685,0.30495979,65989.0,65987.0,0.000924]
[1721178985846,0.435668,66000.0,65991.0,0.5]
[1721178985847,0.216468,66000.0,65991.0,0.5]
[1721178986047,0.216468,66000.0,65992.0,0.303065]
[1721178986246,0.216468,66000.0,65993.0,0.00277097]
[1721178986449,0.216468,66000.0,65998.0,0.5]
[1721178986653,0.216468,66000.0,65999.0,0.002]
[1721178986893,0.216468,66000.0,65999.0,0.456551]
[1721178987092,0.216468,66000.0,65999.0,1.457585]
[1721178987454,0.216468,66000.0,65999.0,1.154551]
[1721178988186,0.216468,66000.0,65999.0,1.41593274]
[1721178988366,0.216468,66000.0,65999.0,1.72196674]
[1721178988966,0.216468,66000.0,65999.0,2.41086654]
[1721178989191,0.216468,66000.0,65999.0,2.49353048]
[1721178989373,0.216468,66000.0,65999.0,2.72307395]
[1721178989569,0.216468,66000.0,65999.0,2.46927817]
[1721178989771,0.216468,66000.0,65999.0,2.49693104]
[1721178990003,0.216468,66000.0,65999.0,2.50051747]
[1721178990175,0.216468,66000.0,65999.0,1.868517]
[1721178990377,0.216468,66000.0,65999.0,2.02289874]
[1721178990576,0.216468,66000.0,65999.0,2.93200074]
[1721178990863,0.216468,66000.0,65999.0,2.92500074]
[1721178991041,0.216468,66000.0,65999.0,2.93800074]
[1721178991626,0.216468,66000.0,65999.0,2.98800074]
[1721178991828,0.216468,66000.0,65999.0,3.06770074]
[1721178992028,0.216468,66000.0,65999.0,3.39983329]
[1721178992252,0.216468,66000.0,65999.0,3.55771069]
[1721178992454,0.216468,66000.0,65999.0,3.52560924]
[1721178992768,0.216468,66000.0,65999.0,3.77167272]
[1721178993068,0.216468,66000.0,65999.0,5.06171069]
[1721178993304,0.216468,66000.0,65999.0,5.05621497]
[1721178993469,0.216468,66000.0,65999.0,5.1062085]
[1721178993677,0.216468,66000.0,65999.0,5.06171069]
[1721178993877,0.216468,66000.0,65999.0,5.01171069]
[1721178994015,0.216468,66000.0,65999.0,4.36171069]
[1721178994218,0.216468,66000.0,65999.0,5.76171069]
[1721178994425,0.216468,66000.0,65999.0,5.31236134]
[1721178994662,0.216468,66000.0,65999.0,5.67133539]
[1721178994871,0.216468,66000.0,65999.0,6.41858455]
[1721178995070,0.216468,66000.0,65999.0,5.61858455]
[1721178995271,0.216468,66000.0,65999.0,5.28277491]
[1721178995510,0.216468,66000.0,65999.0,5.441229]
[1721178995708,0.216468,66000.0,65999.0,5.82229492]
[1721178995949,0.216468,66000.0,65999.0,5.12229492]
[1721178996122,0.216468,66000.0,65999.0,6.59929492]
[1721178996324,0.216468,66000.0,65999.0,5.71029379]
[1721178996534,0.216468,66000.0,65999.0,5.22097952]
[1721178996746,0.216468,66000.0,65999.0,5.06269256]
[1721178996877,0.216468,66000.0,65999.0,5.93269256]
[1721178997076,0.216468,66000.0,65999.0,6.23331264]
[1721178997278,0.216468,66000.0,65999.0,6.03163507]
[1721178997480,0.216468,66000.0,65999.0,5.8549499]
[1721178997720,0.216468,66000.0,65999.0,6.23331189]
[1721178997923,0.216468,66000.0,65999.0,3.56269319]
[1721178998296,0.216468,66000.0,65999.0,4.36269319]
[1721178998498,0.216468,66000.0,65999.0,5.06269319]
[1721178999045,0.216468,66000.0,65999.0,5.94059279]
[1721178999197,0.216468,66000.0,65999.0,5.92269319]
[1721178999395,0.216468,66000.0,65999.0,5.08059228]
[1721178999644,0.216468,66000.0,65999.0,5.18269319]
[1721178999849,0.216468,66000.0,65999.0,5.88269319]
[1721179000049,0.216468,66000.0,65999.0,6.18572719]
[1721179000253,0.216468,66000.0,65999.0,6.24860478]
[1721179000460,0.216468,66000.0,65999.0,6.28851715]
[1721179000668,0.216468,66000.0,65999.0,6.52160821]
[1721179000804,0.216468,66000.0,65999.0,6.4771475]
[1721179001430,0.216468,66000.0,65999.0,6.52159246]
[1721179002645,0.216468,66000.0,65999.0,6.14720314]
[1721179002874,0.216468,66000.0,65999.0,6.21855846]
[1721179003067,0.216468,66000.0,65999.0,6.4771475]
[1721179003414,0.216468,66000.0,65999.0,6.52157613]
[1721179003620,0.216468,66000.0,65999.0,6.52156973]
[1721179003791,0.216468,66000.0,65999.0,6.33294147]
[1721179004107,0.216468,66000.0,65999.0,6.47321023]
[1721179004252,0.216468,66000.0,65999.0,6.42878591]
[1721179004854,0.216468,66000.0,65999.0,6.47321202]
[1721179005312,0.216468,66000.0,65999.0,5.44717802]
[1721179005480,0.216468,66000.0,65999.0,6.04790204]
[1721179005679,0.216468,66000.0,65999.0,5.34790204]
[1721179006008,0.216468,66000.0,65999.0,5.89071087]
[1721179006213,0.216468,66000.0,65999.0,5.34790104]
[1721179006410,0.216468,66000.0,65999.0,5.00693426]
[1721179006691,0.216468,66000.0,65999.0,5.58118487]
[1721179007005,0.216468,66000.0,65999.0,5.68694558]
[1721179007148,0.216468,66000.0,65999.0,4.98694558]
[1721179007405,0.216468,66000.0,65999.0,4.22694558]
[1721179007607,0.216468,66000.0,65999.0,5.11484004]
[1721179007817,0.216468,66000.0,65999.0,5.72694558]
[1721179008018,0.216468,66000.0,65999.0,4.92694558]
[1721179008222,0.216468,66000.0,65999.0,4.87694558]
[1721179008386,0.216468,66000.0,65999.0,4.22694558]
[1721179008584,0.216468,66000.0,65999.0,4.77694558]
[1721179009007,0.216468,66000.0,65999.0,2.97391158]
[1721179009789,0.216468,66000.0,65999.0,2.67089913]
[1721179010355,0.216468,66000.0,65999.0,2.97393313]
[1721179010556,0.363368,66000.0,65999.0,2.77182313]
[1721179010960,0.364208,66000.0,65999.0,3.07224338]
[1721179011384,0.217308,66000.0,65999.0,3.42527738]
[1721179011557,0.217308,66000.0,65999.0,3.05824338]
[1721179011774,0.217308,66000.0,65999.0,3.04424338]
[1721179011983,0.217308,66000.0,65999.0,3.12224338]
[1721179012483,0.217308,66000.0,65999.0,3.09424338]
[1721179012692,0.217308,66000.0,65999.0,2.75520938]
[1721179012865,0.217308,66000.0,65999.0,3.09423423]
[1721179013187,0.217308,66000.0,65999.0,4.91126823]
[1721179013389,0.217308,66000.0,65999.0,5.71526823]
[1721179013600,0.217308,66000.0,65999.0,4.94316791]
[1721179013803,0.217308,66000.0,65999.0,4.92526823]
[1721179014029,0.217308,66000.0,65999.0,5.76526823]
[1721179014184,0.217308,66000.0,65999.0,4.92526823]
[1721179014586,0.217308,66000.0,65999.0,5.11735277]
[1721179014800,0.217308,66000.0,65999.0,4.89726823]
[1721179014999,0.217308,66000.0,65999.0,5.60126823]
[1721179015201,0.217308,66000.0,65999.0,6.18838667]
[1721179015400,0.217308,66000.0,65999.0,6.16038667]
[1721179015812,0.217308,66000.0,65999.0,6.13838435]
[1721179016018,0.217308,66000.0,65999.0,6.35351253]
[1721179016223,0.217308,66000.0,65999.0,6.16038435]
[1721179016387,0.217308,66000.0,65999.0,6.35351253]
[1721179016593,0.217308,66000.0,65999.0,6.36751253]
[1721179016830,0.217308,66000.0,65999.0,6.48817273]
[1721179017186,0.217308,66000.0,65999.0,6.46517273]
[1721179017354,0.217308,66000.0,65999.0,6.36751253]
[1721179017774,0.217308,66000.0,65999.0,6.31751253]
[1721179017976,0.217308,66000.0,65999.0,6.06447853]
[1721179018120,0.217308,66000.0,65999.0,6.17453634]
[1721179018320,0.217308,66000.0,65999.0,6.59700937]
[1721179018723,0.217308,66000.0,65999.0,6.29656478]
[1721179018920,0.217308,66000.0,65999.0,6.5455053]
[1721179019119,0.217308,66000.0,65999.0,6.44464563]
[1721179019329,0.217308,66000.0,65999.0,6.15408406]
[1721179019537,0.217308,66000.0,65999.0,6.12366661]
[1721179019754,0.217308,66000.0,65999.0,6.10966661]
[1721179020428,0.217308,66000.0,65999.0,5.35648397]
[1721179020637,0.217308,66000.0,65999.0,5.30846661]
[1721179020807,0.217308,66000.0,65999.0,3.35543261]
[1721179021042,0.217308,66000.0,65999.0,2.25820847]
[1721179021225,0.217308,66000.0,65999.0,2.66920559]
[1721179021433,0.360808,66000.0,65999.0,2.36617159]
[1721179021632,0.360808,66000.0,65999.0,3.02223959]
[1721179021837,0.360808,66000.0,65999.0,2.99423959]
[1721179022040,0.217308,66000.0,65999.0,2.99423959]
[1721179022216,0.217308,66000.0,65999.0,3.36045639]
[1721179022423,0.217308,66000.0,65999.0,4.08045639]
[1721179022629,0.217308,66000.0,65999.0,4.60179039]
[1721179022954,0.217308,66000.0,65999.0,3.06349039]
[1721179023243,0.217308,66000.0,65999.0,3.72749039]
[1721179023557,0.217308,66000.0,65999.0,3.77749039]
[1721179023685,0.217308,66000.0,65999.0,3.42445639]
[1721179023889,0.279608,66000.0,65999.0,2.07201138]
[1721179024093,0.279608,66000.0,65999.0,2.19779235]
[1721179024287,0.279608,66000.0,65999.0,2.21179235]
[1721179024531,0.279608,66000.0,65999.0,2.51482635]
[1721179024736,0.279608,66000.0,65999.0,1.05724135]
[1721179025081,0.358908,66000.0,65999.0,1.05724135]
[1721179025209,0.358908,66000.0,65999.0,1.48379235]
[1721179025414,0.358908,66000.0,65999.0,1.49779235]
[1721179025733,0.358908,66000.0,65999.0,1.80082635]
[1721179025898,0.358908,66000.0,65999.0,1.78682635]
[1721179026116,0.358908,66000.0,65999.0,1.49279235]
[1721179026565,0.358908,66000.0,65999.0,1.59279235]
[1721179026784,0.358908,66000.0,65999.0,1.88682635]
[1721179026977,0.358908,66000.0,65999.0,1.89782635]
[1721179027198,0.358908,66000.0,65999.0,2.40525179]
[1721179027535,0.358908,66000.0,65999.0,2.41725179]
[1721179027704,0.217308,66000.0,65999.0,2.41725179]
[1721179027904,0.217308,66000.0,65999.0,3.91725179]
[1721179028282,0.217308,66000.0,65999.0,2.34425179]
[1721179028490,0.217308,66000.0,65999.0,2.40825179]
[1721179028687,0.217308,66000.0,65999.0,3.92225179]
[1721179028870,0.217308,66000.0,65999.0,4.21128579]
[1721179029074,0.217308,66000.0,65999.0,5.06849641]
[1721179029297,0.217308,66000.0,65999.0,4.57225179]
[1721179029806,0.217308,66000.0,65999.0,4.60825179]
[1721179030108,0.361608,66000.0,65999.0,2.24646112]
[1721179030308,0.361608,66000.0,65999.0,3.07223085]
[1721179030511,0.361608,66000.0,65999.0,3.05823085]
[1721179030763,0.361608,66000.0,65999.0,3.05823619]
[1721179030990,0.217308,66000.0,65999.0,3.42527019]
[1721179031250,0.217308,66000.0,65999.0,3.41127019]
[1721179031493,0.217308,66000.0,65999.0,4.62920419]
[1721179031723,0.217308,66000.0,65999.0,4.94295247]
[1721179031954,0.217308,66000.0,65999.0,4.95695247]
[1721179032206,0.217308,66000.0,65999.0,4.210099]
[1721179032460,0.217308,66000.0,65999.0,4.118099]
[1721179032683,0.217308,66000.0,65999.0,4.07895247]
[1721179032911,0.217308,66000.0,65999.0,4.15985742]
[1721179033139,0.217308,66000.0,65999.0,4.15988013]
[1721179033387,0.217308,66000.0,65999.0,3.81003249]
[1721179033628,0.217308,66000.0,65999.0,4.19039852]
[1721179033854,0.217308,66000.0,65999.0,4.10695016]
[1721179034078,0.217308,66000.0,65999.0,5.54295016]
[1721179034315,0.217308,66000.0,65999.0,5.6684426]
[1721179034570,0.217308,66000.0,65999.0,5.55695016]
[1721179034816,0.217308,66000.0,65999.0,5.71329866]
[1721179035050,0.217308,66000.0,65999.0,5.66329866]
[1721179035249,0.217308,66000.0,65999.0,5.60180003]
[1721179035474,0.217308,66000.0,65999.0,5.90483403]
[1721179035651,0.217308,66000.0,65999.0,5.85483403]
[1721179036058,0.217308,66000.0,65999.0,7.26616803]
[1721179036212,0.217308,66000.0,65999.0,6.28589158]
[1721179036430,0.217308,66000.0,65999.0,5.77001231]
[1721179037211,0.217308,66000.0,65999.0,6.12304631]
[1721179037423,0.217308,66000.0,65999.0,5.83121231]
[1721179037568,0.217308,66000.0,65999.0,4.96322216]
[1721179037789,0.217308,66000.0,65999.0,4.11863157]
[1721179037991,0.298408,66000.0,65999.0,3.57192198]
[1721179038217,0.298408,66000.0,65999.0,3.37009325]
[1721179038397,0.298408,66000.0,65999.0,3.39079325]
[1721179038602,0.298408,66000.0,65999.0,3.37679325]
[1721179038959,0.298408,66000.0,65999.0,2.98775925]
[1721179039081,0.298408,66000.0,65999.0,2.78775925]
[1721179039278,0.298408,66000.0,65999.0,2.61941604]
[1721179039555,0.364708,66000.0,65999.0,2.31638204]
[1721179039698,0.364708,66000.0,65999.0,2.33038204]
[1721179039901,0.364708,66000.0,65999.0,1.84438204]
[1721179040101,0.364708,66000.0,65999.0,1.22431404]
[1721179040526,0.364708,66000.0,65999.0,1.23831404]
[1721179040736,0.364708,66000.0,65999.0,1.22431404]
[1721179040930,0.364708,66000.0,65999.0,0.85879704]
[1721179041272,0.364708,66000.0,65999.0,0.76101025]
[1721179041476,0.364708,66000.0,65999.0,1.40156125]
[1721179041650,0.364708,66000.0,65999.0,1.84439875]
[1721179041899,0.364708,66000.0,65999.0,1.83039875]
[1721179042071,0.364708,66000.0,65999.0,1.84039875]
[1721179042282,0.364708,66000.0,65999.0,1.94038464]
[1721179042698,0.364708,66000.0,65999.0,1.93038464]
[1721179042903,0.364708,66000.0,65999.0,1.94438464]
[1721179043120,0.364708,66000.0,65999.0,2.46497517]
[1721179043320,0.364708,66000.0,65999.0,2.47597517]
[1721179043553,0.364708,66000.0,65999.0,2.46497517]
[1721179043746,0.364708,66000.0,65999.0,2.48288609]
[1721179043881,0.217308,66000.0,65999.0,2.52897517]
[1721179044223,0.217308,66000.0,65999.0,4.40955366]
[1721179044441,0.217308,66000.0,65999.0,4.01489894]
[1721179044729,0.217308,66000.0,65999.0,5.43965382]
[1721179044924,0.217308,66000.0,65999.0,6.26965382]
[1721179045258,0.217308,66000.0,65999.0,6.35883571]
[1721179045461,0.217308,66000.0,65999.0,6.26955737]
[1721179045666,0.217308,66000.0,65999.0,6.39015529]
[1721179046038,0.217308,66000.0,65999.0,6.29255737]
[1721179046640,0.217308,66000.0,65999.0,6.41819807]
[1721179046847,0.217308,66000.0,65999.0,6.30655737]
[1721179047054,0.217308,66000.0,65999.0,6.17255737]
[1721179047259,0.217308,66000.0,65999.0,6.18655737]
[1721179047457,0.217308,66000.0,65999.0,6.17255737]
[1721179047779,0.217308,66000.0,65999.0,6.18655737]
[1721179048384,0.217308,66000.0,65999.0,6.18653409]
[1721179048537,0.217308,66000.0,65999.0,5.47651219]
[1721179048937,0.217308,66000.0,65999.0,5.3993374]
[1721179048938,0.16486363,66000.0,65999.0,5.3993374]
[1721179049138,0.16486363,66000.0,65999.0,6.2393374]
[1721179050713,0.16486363,66000.0,65999.0,6.0794374]
[1721179051413,0.16486363,66000.0,65999.0,5.76507275]
[1721179051705,0.16486363,66000.0,65999.0,6.10244608]
[1721179051838,0.16486363,66000.0,65999.0,6.05244608]
[1721179052306,0.16486363,66000.0,65999.0,6.10244608]
[1721179053456,0.16486363,66000.0,65999.0,6.40548008]
[1721179053666,0.00836,66016.0,66009.0,0.302988]
[1721179053864,0.00836,66016.0,66010.0,0.72870657]
[1721179054114,0.00836,66016.0,66010.0,0.25438174]
[1721179054665,0.00836,66016.0,66015.0,0.757402]
[1721179054903,0.00836,66016.0,66015.0,1.71178374]
[1721179055667,0.00836,66016.0,66015.0,1.40882274]
[1721179055885,0.08976,66016.0,66015.0,0.814]
[1721179056136,0.20116,66016.0,66015.0,0.814]
[1721179056388,0.20116,66016.0,66015.0,0.714]
[1721179056869,0.15116,66016.0,66015.0,0.014]
[1721179057088,0.15116,66016.0,66015.0,0.728]
[1721179057283,0.15116,66016.0,66015.0,0.87948]
[1721179057517,0.15116,66016.0,66015.0,0.728]
[1721179058016,0.20116,66016.0,66015.0,0.728]
[1721179058198,0.20116,66016.0,66015.0,0.828]
[1721179059473,0.20116,66016.0,66015.0,0.97948]
[1721179059474,0.15116,66016.0,66015.0,0.97948]
[1721179059830,0.15116,66016.0,66015.0,1.73978374]
[1721179060863,0.15116,66016.0,66015.0,3.23978374]
[1721179062151,0.15116,66016.0,66015.0,1.73978374]
[1721179062848,0.15116,66016.0,66015.0,0.828]
[1721179063256,0.15116,66016.0,66015.0,1.282441]
[1721179064094,0.15116,66016.0,66015.0,0.9537543]
[1721179064308,0.20116,66016.0,66015.0,0.9537543]
[1721179064461,0.20116,66016.0,66015.0,0.8537543]
[1721179065229,0.20116,66016.0,66015.0,1.0052343]
[1721179065230,0.15116,66016.0,66015.0,1.0052343]
[1721179065526,0.15116,66016.0,66015.0,1.3081953]
[1721179065853,0.15116,66016.0,66015.0,1.6111563]
[1721179066056,0.15116,66016.0,66015.0,1.86553804]
[1721179066717,0.15116,66016.0,66015.0,1.86553271]
[1721179067079,0.15116,66016.0,66015.0,3.66849371]
[1721179067478,0.00836,66016.0,66015.0,3.66849371]
[1721179068123,0.00836,66016.0,66015.0,3.68638252]
[1721179068331,0.02,66023.0,66022.0,0.7]
[1721179068527,0.00836,66028.0,66027.0,0.151453]
[1721179068811,0.00836,66028.0,66027.0,3.22558756]
[1721179069086,0.00836,66028.0,66027.0,5.56220438]
[1721179069332,0.01557722,66054.0,66032.0,1.60099]
[1721179069539,0.01557722,66054.0,66036.0,0.651432]
[1721179069540,1e-06,66037.0,66036.0,0.651432]
[1721179069741,0.01557722,66054.0,66036.0,0.651432]
[1721179069742,7e-08,66042.0,66041.0,2.062789]
[1721179069890,7e-08,66042.0,66041.0,1.76676594]
[1721179070091,7e-08,66042.0,66041.0,3.70392629]
[1721179070317,7e-08,66042.0,66041.0,6.39615003]
[1721179070532,0.0149822,66053.0,66048.0,1.154215]
[1721179070724,0.0149822,66053.0,66048.0,2.61081429]
[1721179070948,0.0149822,66053.0,66048.0,3.27362429]
[1721179071162,0.0149822,66053.0,66048.0,2.13657603]
[1721179071369,0.0149822,66053.0,66048.0,2.74219603]
[1721179071659,0.0149822,66053.0,66048.0,3.46519603]
[1721179071863,0.0149822,66053.0,66048.0,3.44219603]
[1721179072102,0.0149822,66053.0,66048.0,3.45619603]
[1721179072367,0.0149822,66053.0,66048.0,1.11191015]
[1721179072368,0.0968822,66053.0,66048.0,1.11191015]
[1721179072559,0.0968822,66053.0,66048.0,2.24651674]
[1721179072810,0.0149822,66053.0,66048.0,2.0693876]
[1721179073020,0.0149822,66053.0,66048.0,1.65489674]
[1721179073181,0.0149822,66053.0,66048.0,2.05538283]
[1721179073398,0.0149822,66053.0,66048.0,0.99790504]
[1721179073729,0.082207,66049.0,66048.0,0.85367609]
[1721179073820,0.082207,66049.0,66048.0,0.99405783]
[1721179074020,0.082207,66049.0,66048.0,0.82567609]
[1721179074235,0.082207,66049.0,66048.0,0.83967609]
[1721179074886,0.198107,66049.0,66048.0,0.82567609]
[1721179075175,0.198107,66049.0,66048.0,0.714]
[1721179075412,0.198947,66049.0,66048.0,0.714]
[1721179075622,0.198947,66049.0,66048.0,0.014]
[1721179075854,0.198947,66049.0,66048.0,0.028]
[1721179076119,0.001147,66049.0,66048.0,1.06512288]
[1721179076355,0.001147,66049.0,66048.0,2.13110767]
[1721179076581,0.001147,66049.0,66048.0,3.63110767]
[1721179077058,0.001147,66049.0,66048.0,4.50010767]
[1721179077270,0.001147,66049.0,66048.0,4.05691767]
[1721179077486,0.001147,66049.0,66048.0,4.89091767]
[1721179077707,0.001147,66049.0,66048.0,3.75410767]
[1721179077923,0.0149822,66053.0,66052.0,1.259768]
[1721179078132,0.0149822,66053.0,66052.0,4.32716588]
[1721179078354,0.0149822,66053.0,66052.0,4.26529313]
[1721179078577,0.0149822,66053.0,66052.0,4.27285313]
[1721179078788,0.0149822,66053.0,66052.0,4.97278855]
[1721179079000,0.0149822,66053.0,66052.0,6.10137955]
[1721179079234,0.0149822,66053.0,66052.0,5.7449523]
[1721179079447,0.000563,66069.0,66060.0,2.262397]
[1721179079732,0.000563,66069.0,66065.0,0.454098]
[1721179079941,0.000563,66069.0,66065.0,2.89394374]
[1721179080183,0.000563,66069.0,66065.0,3.1368633]
[1721179080421,0.000563,66069.0,66065.0,2.3341313]
[1721179080625,0.1132,66067.0,66065.0,0.82565156]
[1721179080874,0.0632,66067.0,66065.0,1.14541153]
[1721179081077,0.000563,66069.0,66065.0,1.75087514]
[1721179081285,0.000563,66069.0,66065.0,1.44814314]
[1721179081490,0.000563,66069.0,66065.0,1.05465914]
[1721179081977,0.000563,66069.0,66065.0,1.06865914]
[1721179082212,0.000563,66069.0,66065.0,0.92899574]
[1721179082450,0.05,66067.0,66065.0,0.888614]
[1721179082694,0.000563,66069.0,66065.0,1.18036174]
[1721179082893,0.000563,66069.0,66065.0,1.78582574]
[1721179083155,0.000563,66069.0,66065.0,1.9254941]
[1721179083396,0.000563,66069.0,66065.0,2.2142261]
[1721179083613,0.000563,66069.0,66065.0,1.9254941]
[1721179083844,0.000563,66069.0,66065.0,1.15464109]
[1721179084097,0.000563,66069.0,66065.0,1.59473909]
[1721179084338,0.000563,66069.0,66065.0,1.60873909]
[1721179084580,0.000563,66069.0,66065.0,1.15464109]
[1721179084781,0.000563,66069.0,66065.0,1.16864109]
[1721179084999,0.000563,66069.0,66065.0,1.04299574]
[1721179085232,0.000563,66069.0,66065.0,1.02899574]
[1721179085698,0.20015,66066.0,66065.0,0.774614]
[1721179085936,0.15015,66066.0,66065.0,0.074614]
[1721179086135,0.15015,66066.0,66065.0,0.21499574]
[1721179086373,0.15015,66066.0,66065.0,0.22899574]
[1721179086576,0.15015,66066.0,66065.0,0.24299574]
[1721179086800,0.15015,66066.0,66065.0,0.22899574]
[1721179087003,0.00835,66066.0,66065.0,3.79255774]
[1721179087188,0.00835,66066.0,66065.0,3.13205013]
[1721179087400,0.00835,66066.0,66065.0,3.11422624]
[1721179087601,1e-08,66066.0,66065.0,4.95395824]
[1721179087838,1e-08,66066.0,66065.0,4.63722624]
[1721179088005,1e-08,66066.0,66065.0,4.41804882]
[1721179088227,1e-08,66066.0,66065.0,4.63722624]
[1721179088430,1e-08,66066.0,66065.0,4.45122624]
[1721179088633,1e-08,66066.0,66065.0,4.42822624]
[1721179088955,1e-08,66066.0,66065.0,1.37685024]
[1721179089253,1e-08,66066.0,66065.0,1.15466424]
[1721179089677,1e-08,66066.0,66065.0,1.04299574]
[1721179089926,0.05000001,66066.0,66065.0,1.16865215]
[1721179090100,1e-08,66066.0,66065.0,1.16865215]
[1721179090299,0.19250001,66066.0,66065.0,0.91427041]
[1721179090498,0.14250001,66066.0,66065.0,0.94299574]
[1721179090926,0.14250001,66066.0,66065.0,0.91428605]
[1721179091132,0.14250001,66066.0,66065.0,0.21428605]
[1721179091329,0.14250001,66066.0,66065.0,0.20028605]
[1721179091766,0.14250001,66066.0,66065.0,0.21428424]
[1721179091915,0.14250001,66066.0,66065.0,0.31428424]
[1721179092116,0.19250001,66066.0,66065.0,0.31428424]
[1721179092605,0.14250001,66066.0,66065.0,0.31428424]
[1721179092806,0.14250001,66066.0,66065.0,0.188614]
[1721179092957,0.14250001,66066.0,66065.0,0.30028599]
[1721179092958,0.19250001,66066.0,66065.0,0.30028599]
[1721179093307,0.19250001,66066.0,66065.0,0.28628599]
[1721179093511,0.14250001,66066.0,66065.0,0.31428599]
[1721179093687,0.14250001,66066.0,66065.0,0.30028599]
[1721179093842,0.19250001,66066.0,66065.0,0.30028599]
[1721179094037,0.14250001,66066.0,66065.0,0.31428599]
[1721179094239,0.14250001,66066.0,66065.0,0.46866773]